bitfinex/quotes_BTCUSD_20250420
["timestamp","ask_amount","ask_price","bid_price","bid_amount"]
[1745184347610,0.12044791,84770.0,84763.0,1.15120353]
[1745184347810,0.12044791,84770.0,84763.0,1.15220353]
[1745184348268,0.001,84770.0,84763.0,1.15220353]
[1745184351654,4.487e-05,84776.0,84763.0,1.19500353]
[1745184351840,0.11944791,84775.0,84766.0,0.19662128]
[1745184352165,0.11944791,84775.0,84767.0,0.00761931]
[1745184352492,0.12044791,84775.0,84767.0,0.00761931]
[1745184352635,4.487e-05,84776.0,84767.0,0.00761931]
[1745184352636,0.001,84773.0,84767.0,0.00861931]
[1745184352835,0.001,84773.0,84767.0,0.00761931]
[1745184353021,0.001,84773.0,84767.0,0.00861931]
[1745184353874,4.487e-05,84776.0,84767.0,0.00861931]
[1745184354073,4.487e-05,84776.0,84768.0,0.0328]
[1745184354304,4.487e-05,84776.0,84769.0,0.0428]
[1745184354507,4.487e-05,84776.0,84769.0,0.05027624]
[1745184354786,4.487e-05,84776.0,84770.0,0.0328]
[1745184354994,4.487e-05,84776.0,84771.0,0.0428]
[1745184355158,4.487e-05,84776.0,84772.0,0.0328]
[1745184355566,4.487e-05,84776.0,84773.0,0.0074708]
[1745184355772,4.487e-05,84776.0,84774.0,0.0328]
[1745184356207,4.487e-05,84776.0,84775.0,0.0074708]
[1745184356389,4.487e-05,84776.0,84775.0,0.0402708]
[1745184356729,4.487e-05,84776.0,84775.0,0.0412708]
[1745184356941,4.487e-05,84776.0,84775.0,0.17525956]
[1745184357058,4.487e-05,84776.0,84775.0,0.25100249]
[1745184357257,0.09280581,84810.0,84776.0,0.0428]
[1745184357462,0.119493,84809.0,84800.0,0.19662128]
[1745184357665,0.119493,84809.0,84801.0,0.09996]
[1745184357876,0.119493,84809.0,84801.0,0.10731771]
[1745184358543,4.509e-05,84809.0,84802.0,0.34]
[1745184359243,4.509e-05,84809.0,84803.0,0.00735771]
[1745184360789,4.509e-05,84809.0,84803.0,0.00835771]
[1745184369059,4.509e-05,84809.0,84803.0,0.00735771]
[1745184369738,4.509e-05,84809.0,84803.0,0.00835771]
[1745184369901,4.509e-05,84809.0,84804.0,1.00964]
[1745184370329,4.509e-05,84809.0,84805.0,0.00699502]
[1745184370739,4.509e-05,84809.0,84805.0,0.00799502]
[1745184371849,4.509e-05,84809.0,84805.0,0.05079502]
[1745184374783,4.509e-05,84809.0,84805.0,0.05980814]
[1745184375588,0.04164509,84828.0,84805.0,0.05980814]
[1745184375753,0.04164509,84828.0,84818.0,0.19662128]
[1745184375953,0.004,84829.0,84819.0,0.10668653]
[1745184376209,0.12344791,84829.0,84819.0,0.10668653]
[1745184377355,0.12344791,84829.0,84819.0,0.120802]
[1745184377627,0.00372494,84826.0,84819.0,0.120802]
[1745184377827,0.00372494,84827.0,84819.0,0.120802]
[1745184378247,0.004,84829.0,84819.0,0.120802]
[1745184378393,0.00772494,84829.0,84819.0,0.120802]
[1745184379913,0.00372494,84827.0,84819.0,0.120802]
[1745184381134,0.004,84829.0,84819.0,0.120802]
[1745184381412,0.00372494,84827.0,84819.0,0.120802]
[1745184383958,0.00372494,84826.0,84819.0,0.120802]
[1745184386212,0.004,84829.0,84819.0,0.120802]
[1745184391146,0.004,84829.0,84820.0,1.00936]
[1745184391507,0.004,84829.0,84821.0,0.00673308]
[1745184393305,0.00356714,84832.0,84821.0,0.00673308]
[1745184394604,0.05166714,84833.0,84821.0,0.00673308]
[1745184394930,0.00356714,84832.0,84821.0,0.00673308]
[1745184395607,0.05166714,84833.0,84821.0,0.00673308]
[1745184396158,0.0481,84833.0,84821.0,0.00673308]
[1745184396709,0.05166714,84833.0,84821.0,0.00673308]
[1745184397451,0.0481,84833.0,84821.0,0.00673308]
[1745184397586,0.05166714,84833.0,84821.0,0.00673308]
[1745184398660,0.0481,84833.0,84821.0,0.00673308]
[1745184399202,0.0008422,84835.0,84823.0,0.19662128]
[1745184399545,0.00097745,84835.0,84824.0,0.00673697]
[1745184400044,0.00097745,84835.0,84820.0,1.00936]
[1745184400192,0.00097745,84835.0,84825.0,0.00673697]
[1745184400391,0.00097745,84835.0,84820.0,1.00936]
[1745184400633,0.00097745,84835.0,84821.0,0.00673697]
[1745184416320,0.00097745,84835.0,84822.0,0.09984]
[1745184416685,0.00097745,84835.0,84823.0,0.00668987]
[1745184421132,0.00097745,84835.0,84824.0,1.00924]
[1745184421795,0.00097745,84835.0,84825.0,0.00668987]
[1745184425955,0.00097745,84835.0,84826.0,0.0998]
[1745184426262,0.00097745,84835.0,84827.0,0.00668771]
[1745184428470,0.00097745,84835.0,84827.0,0.34668771]
[1745184430688,0.00097745,84835.0,84829.0,0.34]
[1745184431394,0.00097745,84835.0,84830.0,0.00668771]
[1745184435400,0.00097745,84835.0,84831.0,0.0998]
[1745184435653,0.00097745,84835.0,84832.0,0.00667956]
[1745184440410,0.00097745,84835.0,84833.0,1.00924]
[1745184440896,0.00097745,84835.0,84834.0,0.00667956]
[1745184444973,0.00097745,84835.0,84834.0,0.10647956]
[1745184462427,0.00097745,84835.0,84834.0,0.00667956]
[1745184462654,0.00097745,84835.0,84834.0,0.10639956]
[1745184485412,0.0008422,84836.0,84835.0,0.00902255]
[1745184485835,0.0008422,84836.0,84835.0,0.0145682]
[1745184489508,0.0008422,84836.0,84835.0,1.0238082]
[1745184494354,0.0008422,84836.0,84835.0,1.1234882]
[1745184518483,0.0008422,84836.0,84835.0,1.11271337]
[1745184518642,0.0008422,84836.0,84835.0,1.11417771]
[1745184539809,0.22060416,84836.0,84835.0,1.11413771]
[1745184540872,0.22060416,84836.0,84835.0,1.01449771]
[1745184540873,0.63680416,84836.0,84835.0,1.01449771]
[1745184541088,0.63385725,84836.0,84835.0,1.11413771]
[1745184541387,0.63385725,84836.0,84835.0,1.10888]
[1745184543191,0.63385725,84836.0,84835.0,1.00924]
[1745184543394,0.63385725,84836.0,84835.0,1.10888]
[1745184566911,0.63385725,84836.0,84835.0,0.09964]
[1745184568999,0.63285725,84836.0,84835.0,0.09964]
[1745184605667,0.54005725,84836.0,84835.0,0.09964]
[1745184610992,0.54005725,84836.0,84835.0,0.10064]
[1745184611193,0.12385725,84836.0,84835.0,0.10064]
[1745184611776,0.21990414,84836.0,84835.0,0.09948]
[1745184612361,0.00356714,84834.0,84833.0,1.00944]
[1745184612572,0.12596218,84834.0,84833.0,1.10892]
[1745184613130,0.12596218,84834.0,84833.0,1.00944]
[1745184613352,0.12596218,84834.0,84833.0,1.10892]
[1745184639046,0.12301505,84834.0,84833.0,1.10892]
[1745184639264,0.12301505,84834.0,84833.0,1.00944]
[1745184639527,0.12301505,84834.0,84833.0,1.10892]
[1745184695136,0.12301505,84834.0,84833.0,1.1088]
[1745184705577,0.11944791,84834.0,84833.0,1.1088]
[1745184705748,0.11944791,84834.0,84833.0,1.1098]
[1745184705960,0.11944791,84834.0,84833.0,1.1088]
[1745184707076,0.11944791,84834.0,84833.0,1.4488]
[1745184707435,0.11944791,84834.0,84833.0,1.4498]
[1745184726133,0.11944791,84834.0,84833.0,1.4488]
[1745184749028,0.11944791,84834.0,84833.0,1.4498]
[1745184749253,0.0008422,84836.0,84834.0,0.34]
[1745184749431,0.0008422,84836.0,84834.0,0.341]
[1745184749815,0.0008422,84836.0,84835.0,0.09924]
[1745184750265,0.0008422,84836.0,84835.0,0.44024]
[1745184751044,0.0008422,84836.0,84835.0,0.43924]
[1745184751272,0.0008422,84836.0,84835.0,0.44024]
[1745184761086,0.23130816,84837.0,84835.0,0.10024]
[1745184761414,0.20999816,84837.0,84835.0,0.10024]
[1745184763270,0.20999816,84837.0,84836.0,0.34]
[1745184763671,0.20999816,84837.0,84836.0,0.341]
[1745184768765,0.20199816,84837.0,84836.0,0.341]
[1745184771692,0.19437875,84837.0,84836.0,0.341]
[1745184772528,0.18537876,84837.0,84836.0,0.341]
[1745184772729,0.17825876,84837.0,84836.0,0.341]
[1745184773028,0.17075876,84837.0,84836.0,0.341]
[1745184773242,0.13918904,84837.0,84836.0,0.341]
[1745184773676,0.13120905,84837.0,84836.0,0.341]
[1745184774324,0.11105905,84837.0,84836.0,0.341]
[1745184774760,0.05225926,84837.0,84836.0,0.341]
[1745184774978,0.01651926,84837.0,84836.0,0.341]
[1745184776387,0.01351926,84837.0,84836.0,0.341]
[1745184777681,0.0008422,84843.0,84836.0,0.341]
[1745184777923,0.0008422,84843.0,84837.0,0.0589]
[1745184778271,0.0008422,84843.0,84837.0,0.0599]
[1745184785748,0.0008422,84843.0,84837.0,0.064606]
[1745184786288,0.00088726,84843.0,84837.0,0.064606]
[1745184786961,0.00088726,84843.0,84837.0,0.0599]
[1745184787341,0.0048422,84849.0,84838.0,0.13398876]
[1745184787548,0.0048422,84849.0,84840.0,0.01454085]
[1745184787751,0.0048422,84849.0,84842.0,0.01454085]
[1745184787951,0.0048422,84849.0,84843.0,0.11944791]
[1745184788676,1e-08,84852.0,84843.0,0.11944791]
[1745184788870,4.507e-05,84852.0,84843.0,0.11944791]
[1745184789191,0.04102967,84857.0,84843.0,0.11944791]
[1745184789409,0.04102967,84857.0,84843.0,0.11949297]
[1745184796746,0.03302967,84857.0,84843.0,0.11949297]
[1745184798726,0.0008424,84864.0,84843.0,0.11949297]
[1745184799134,0.0008424,84864.0,84849.0,0.19662128]
[1745184799999,0.0478,84860.0,84849.0,0.20530492]
[1745184800599,0.0478,84860.0,84849.0,0.19662128]
[1745184802450,0.0478,84860.0,84851.0,0.34]
[1745184804674,0.0383428,84859.0,84851.0,0.34]
[1745184807193,0.0383428,84859.0,84852.0,0.09908]
[1745184807796,0.0478416,84866.0,84854.0,0.01454085]
[1745184808004,0.0478416,84866.0,84856.0,0.40778341]
[1745184808198,0.0478416,84866.0,84857.0,0.11944791]
[1745184808564,0.0276916,84866.0,84857.0,0.11944791]
[1745184809173,0.0008424,84868.0,84857.0,0.11944791]
[1745184809510,0.004,84869.0,84859.0,0.01454085]
[1745184809704,0.004,84869.0,84861.0,0.35454085]
[1745184809863,0.004,84869.0,84863.0,0.34]
[1745184810068,0.004,84869.0,84865.0,0.34]
[1745184810301,0.004,84869.0,84867.0,0.34]
[1745184811852,0.004,84869.0,84867.0,0.11944791]
[1745184812544,0.0466846,84877.0,84867.0,0.11944791]
[1745184812840,0.0466846,84877.0,84867.0,0.31606919]
[1745184816791,0.0466846,84877.0,84868.0,0.13398876]
[1745184817041,0.0484,84880.0,84868.0,0.13398876]
[1745184818504,0.0451,84882.0,84868.0,0.13398876]
[1745184818726,0.0451,84882.0,84872.0,0.19662128]
[1745184818935,0.0451,84882.0,84873.0,0.15798]
[1745184819110,0.0486,84888.0,84873.0,0.15798]
[1745184819111,0.0974,84888.0,84873.0,0.27742791]
[1745184819317,0.0974,84888.0,84873.0,0.28626643]
[1745184819934,0.09785097,84888.0,84873.0,0.28626643]
[1745184820236,0.08985097,84888.0,84874.0,0.34]
[1745184820529,0.08985097,84888.0,84874.0,0.45944791]
[1745184825037,0.08985097,84888.0,84875.0,1.0086]
[1745184827839,0.08185097,84888.0,84875.0,1.0086]
[1745184829133,0.08185097,84888.0,84875.0,1.02059887]
[1745184836403,0.07385097,84888.0,84875.0,1.02059887]
[1745184838827,0.07385097,84888.0,84878.0,0.19662128]
[1745184839489,0.07385097,84888.0,84879.0,0.099]
[1745184840174,0.07385097,84888.0,84879.0,0.439]
[1745184844151,0.06585097,84888.0,84880.0,1.00852]
[1745184844372,0.04925097,84888.0,84880.0,1.00852]
[1745184851493,0.00045097,84888.0,84880.0,1.00852]
[1745184851729,0.04343517,84894.0,84881.0,0.34]
[1745184851851,0.04357032,84894.0,84881.0,0.34]
[1745184853846,0.04357032,84894.0,84882.0,0.099]
[1745184854488,0.04357032,84894.0,84885.0,0.34]
[1745184858688,0.04357032,84894.0,84886.0,1.00848]
[1745184858892,0.04357032,84894.0,84887.0,0.34]
[1745184859394,0.03557032,84894.0,84887.0,0.34]
[1745184863301,0.03557032,84894.0,84887.0,0.34]
[1745184863497,0.00013515,84894.0,84887.0,0.34]
[1745184865279,0.00013515,84894.0,84888.0,0.11944791]
[1745184865617,0.004,84909.0,84891.0,0.0451]
[1745184865800,0.004,84909.0,84899.0,0.39324256]
[1745184866167,0.004,84909.0,84900.0,0.43896]
[1745184866488,0.004,84909.0,84902.0,0.34]
[1745184866689,0.004,84909.0,84904.0,0.34]
[1745184866910,0.004,84909.0,84906.0,0.34]
[1745184867230,0.0471842,84922.0,84906.0,0.34]
[1745184867465,0.0001351,84921.0,84911.0,0.34]
[1745184870549,0.0001351,84921.0,84912.0,1.10728]
[1745184874899,0.05004444,84932.0,84912.0,1.10728]
[1745184875120,0.16949235,84932.0,84912.0,1.1074151]
[1745184875237,0.16949235,84932.0,84913.0,0.09896]
[1745184880043,0.16949235,84932.0,84914.0,1.00816]
[1745184884894,0.16949235,84932.0,84915.0,0.09892]
[1745184885818,0.10033171,84932.0,84915.0,0.09892]
[1745184889627,0.10033171,84932.0,84916.0,1.00812]
[1745184894435,0.10033171,84932.0,84917.0,0.09892]
[1745184898405,0.09978727,84932.0,84917.0,0.09892]
[1745184898567,0.10033171,84932.0,84917.0,0.09892]
[1745184903738,0.09978727,84932.0,84917.0,0.09892]
[1745184903984,0.10033171,84932.0,84917.0,0.09892]
[1745184908945,0.10033171,84932.0,84918.0,1.00812]
[1745184910986,0.0467,84929.0,84918.0,1.00812]
[1745184911201,0.04584444,84920.0,84919.0,0.09892]
[1745184911418,0.16529235,84920.0,84919.0,0.09892]
[1745184911592,0.16629235,84920.0,84919.0,0.43892]
[1745184911941,0.16629235,84920.0,84919.0,0.34]
[1745184912143,0.16629235,84920.0,84919.0,0.09892]
[1745184912574,0.21409235,84920.0,84919.0,0.09892]
[1745184912763,0.20609235,84920.0,84918.0,1.00812]
[1745184912968,0.122392,84919.0,84918.0,1.00812]
[1745184913297,0.122392,84919.0,84918.0,1.10704]
[1745184913455,0.123392,84919.0,84918.0,1.10704]
[1745184915095,0.18573285,84919.0,84918.0,1.10704]
[1745184915815,0.23223285,84919.0,84918.0,1.10704]
[1745184916317,0.64843285,84919.0,84918.0,1.10704]
[1745184916533,0.64548876,84919.0,84918.0,1.10704]
[1745184918595,0.65760886,84919.0,84918.0,1.10704]
[1745184921215,0.65760886,84919.0,84918.0,1.00812]
[1745184921499,0.65760886,84919.0,84918.0,1.107]
[1745184921949,0.64548876,84919.0,84918.0,1.107]
[1745184924232,0.64548876,84919.0,84918.0,1.00812]
[1745184924526,0.64548876,84919.0,84918.0,1.10704]
[1745184924699,0.64548876,84919.0,84918.0,1.00812]
[1745184924879,0.64548876,84919.0,84918.0,1.10704]
[1745184931598,0.64548876,84919.0,84918.0,1.12153054]
[1745184939020,0.64548876,84919.0,84918.0,1.12153054]
[1745184939218,0.64548876,84919.0,84918.0,0.11341054]
[1745184939636,0.64548876,84919.0,84918.0,0.09892]
[1745184955226,0.53564791,84919.0,84918.0,0.09892]
[1745184960495,0.11944791,84919.0,84918.0,0.14872]
[1745184960737,0.11944791,84919.0,84918.0,0.16268436]
[1745184978372,0.11944791,84919.0,84918.0,1.17108436]
[1745184983942,0.11944791,84919.0,84918.0,1.17008436]
[1745184988210,0.4162,84929.0,84919.0,0.0473]
[1745184988421,0.11944791,84928.0,84919.0,0.0473]
[1745184988717,0.11944791,84928.0,84920.0,0.06147631]
[1745184989062,0.11944791,84928.0,84920.0,0.06247631]
[1745184989280,0.11944791,84928.0,84921.0,0.0477]
[1745184989679,0.11944791,84928.0,84922.0,0.0137736]
[1745184989961,0.4162,84929.0,84923.0,0.0477]
[1745184990156,0.53564791,84929.0,84924.0,0.01369038]
[1745184990693,0.53564791,84929.0,84924.0,0.01469038]
[1745184991071,0.53564791,84929.0,84924.0,0.01369038]
[1745184991280,0.11944791,84929.0,84924.0,0.01469038]
[1745184995918,0.00378581,84942.0,84925.0,0.0492]
[1745184996124,0.11944791,84941.0,84927.0,0.0492]
[1745184996443,0.11944791,84941.0,84928.0,0.01353408]
[1745184996636,0.11944791,84941.0,84929.0,0.0492]
[1745184997158,0.0008422,84942.0,84930.0,0.01353408]
[1745184997368,0.12029011,84942.0,84931.0,0.0482]
[1745184997662,0.12029011,84942.0,84932.0,0.01353498]
[1745184997904,0.12029011,84942.0,84934.0,0.0482]
[1745184998312,0.12029011,84942.0,84937.0,0.0482]
[1745184998896,0.12029011,84942.0,84938.0,0.01347787]
[1745184999499,0.0008422,84942.0,84939.0,0.0482]
[1745184999862,0.0008422,84942.0,84940.0,0.01347787]
[1745185001268,0.0008422,84942.0,84941.0,0.0497]
[1745185001696,0.0008422,84942.0,84941.0,0.06417877]
[1745185003313,0.0008422,84942.0,84941.0,0.11287877]
[1745185003538,0.0008422,84942.0,84941.0,0.12190186]
[1745185004358,0.0008422,84942.0,84941.0,0.24134977]
[1745185004522,0.000842,84962.0,84941.0,0.14294977]
[1745185004737,0.00013508,84949.0,84945.0,0.0984]
[1745185004939,0.00013508,84949.0,84946.0,0.0984]
[1745185005099,0.00013508,84949.0,84947.0,0.0984]
[1745185005302,0.000842,84962.0,84948.0,0.0984]
[1745185005503,0.000842,84962.0,84949.0,0.34]
[1745185005713,0.000842,84962.0,84951.0,0.34]
[1745185005911,0.000842,84962.0,84952.0,0.4384]
[1745185006095,0.000842,84962.0,84953.0,0.5372]
[1745185006561,0.000842,84962.0,84953.0,0.5510563]
[1745185006768,0.000842,84962.0,84954.0,0.4384]
[1745185006914,0.000842,84962.0,84956.0,0.34]
[1745185007095,0.000842,84962.0,84959.0,0.0497]
[1745185007306,0.000842,84962.0,84960.0,0.16814791]
[1745185007518,0.00202512,84969.0,84963.0,0.0497]
[1745185007757,0.00202512,84969.0,84966.0,0.0984]
[1745185007937,0.00202512,84969.0,84968.0,0.34]
[1745185008136,0.00202512,84969.0,84968.0,0.3897]
[1745185008343,0.00202512,84969.0,84968.0,0.52294556]
[1745185008944,0.0004212,84976.0,84969.0,0.0497]
[1745185009144,0.00087136,84976.0,84969.0,0.16914791]
[1745185009422,0.00087136,84976.0,84971.0,0.0497]
[1745185009841,0.00087136,84976.0,84971.0,0.0507]
[1745185010212,0.00087136,84976.0,84972.0,0.01280307]
[1745185010413,0.00087136,84976.0,84971.0,0.0507]
[1745185010708,0.00087136,84976.0,84972.0,0.01280307]
[1745185010929,0.00087136,84976.0,84973.0,0.0988]
[1745185011236,0.11944791,84975.0,84974.0,0.0988]
[1745185011537,0.11944791,84975.0,84974.0,0.10923443]
[1745185011538,0.12044791,84975.0,84974.0,0.10923443]
[1745185013370,0.11944791,84975.0,84974.0,0.44919443]
[1745185015562,0.00087136,84976.0,84975.0,0.34]
[1745185015772,0.12031927,84976.0,84975.0,0.34]
[1745185016091,0.12031927,84976.0,84975.0,0.01043989]
[1745185016431,0.00087136,84976.0,84975.0,0.01043989]
[1745185016787,0.00087136,84976.0,84975.0,0.01143989]
[1745185018792,0.00087136,84976.0,84975.0,0.05953989]
[1745185020120,0.00087136,84976.0,84975.0,0.1789878]
[1745185020529,6e-05,85000.0,84975.0,0.1789878]
[1745185020705,0.0004662,84988.0,84978.0,0.29852689]
[1745185020900,0.0004662,84988.0,84979.0,0.0965]
[1745185021149,0.0004662,84988.0,84979.0,0.10698428]
[1745185021352,0.0004662,84988.0,84979.0,0.10798428]
[1745185021728,0.0004662,84988.0,84979.0,0.16668428]
[1745185021950,0.0004662,84988.0,84980.0,0.11944791]
[1745185022261,0.0004662,84988.0,84981.0,0.06013163]
[1745185022500,0.0004662,84988.0,84983.0,0.0998]
[1745185022611,0.0004662,84988.0,84985.0,0.0498]
[1745185022818,0.0004662,84988.0,84986.0,0.12969924]
[1745185023043,0.00038222,84989.0,84986.0,0.12969924]
[1745185023331,0.00038222,84989.0,84986.0,0.13069924]
[1745185023858,0.00038222,84989.0,84986.0,0.16449621]
[1745185024044,0.00038222,84989.0,84987.0,0.06563656]
[1745185024229,0.00038222,84989.0,84988.0,0.11944791]
[1745185024438,0.00038222,84989.0,84988.0,0.19528013]
[1745185024646,0.00038222,84989.0,84988.0,0.19628013]
[1745185024853,0.00038222,84989.0,84988.0,0.24608013]
[1745185025410,0.00038222,84989.0,84988.0,0.22310234]
[1745185025564,6e-05,85000.0,84988.0,0.26880234]
[1745185025766,6e-05,85000.0,84989.0,0.0498]
[1745185025947,6e-05,85000.0,84990.0,0.11944791]
[1745185026158,6e-05,85000.0,84990.0,0.12960678]
[1745185026367,6e-05,85000.0,84990.0,0.13060678]
[1745185026568,6e-05,85000.0,84990.0,0.16440375]
[1745185026772,6e-05,85000.0,84991.0,0.03379697]
[1745185027088,6e-05,85000.0,84992.0,0.21816791]
[1745185027282,6e-05,85000.0,84992.0,0.22832678]
[1745185027491,6e-05,85000.0,84992.0,0.22932678]
[1745185027897,6e-05,85000.0,84993.0,0.004697]
[1745185028102,0.0013234,85009.0,84993.0,0.12414491]
[1745185028315,0.0013234,85009.0,84999.0,0.29852689]
[1745185028629,0.0013234,85009.0,85000.0,0.01017241]
[1745185029191,0.0013234,85009.0,85001.0,1.00732]
[1745185029620,0.0013234,85009.0,85002.0,0.01017241]
[1745185030139,0.0013234,85009.0,85003.0,0.046]
[1745185030501,0.0013234,85009.0,85004.0,0.01017241]
[1745185031296,0.0013234,85009.0,85005.0,0.09872]
[1745185031484,0.0013234,85009.0,85005.0,0.10889241]
[1745185032075,0.0013234,85009.0,85005.0,0.01017241]
[1745185032228,0.0013234,85009.0,85006.0,0.09872]
[1745185032430,0.0013234,85009.0,85007.0,0.01015618]
[1745185032933,0.21454791,85008.0,85007.0,0.01015618]
[1745185033112,0.21748911,85008.0,85007.0,0.10887618]
[1745185033313,0.21748911,85008.0,85007.0,0.09872]
[1745185033314,0.63468911,85008.0,85007.0,0.09872]
[1745185033503,0.63174791,85008.0,85007.0,0.10889779]
[1745185035025,0.64628876,85008.0,85007.0,0.01017779]
[1745185035231,0.64628876,85008.0,85007.0,0.09872]
[1745185035629,0.64258876,85008.0,85007.0,0.10881974]
[1745185036396,0.55118876,85008.0,85007.0,0.09872]
[1745185036569,0.64258876,85008.0,85007.0,0.10713645]
[1745185036955,0.64258876,85008.0,84959.0,0.0484]
[1745185036956,0.01454085,85001.0,84959.0,0.0484]
[1745185037154,0.11944791,84994.0,84973.0,0.09407614]
[1745185037351,0.00294203,84993.0,84973.0,0.09407614]
[1745185037554,0.16484791,84992.0,84973.0,0.09407614]
[1745185037757,0.29852689,84990.0,84973.0,0.09407614]
[1745185037961,0.16544791,84988.0,84971.0,0.01201957]
[1745185038315,0.00294223,84987.0,84971.0,0.01201957]
[1745185038513,0.00294223,84987.0,84972.0,1.10604]
[1745185038514,0.11944791,84986.0,84972.0,1.10604]
[1745185038649,0.00294219,84985.0,84972.0,1.10604]
[1745185038850,0.11944791,84984.0,84972.0,1.10604]
[1745185039043,0.11944791,84982.0,84973.0,0.09872]
[1745185039286,0.00294224,84981.0,84973.0,0.09872]
[1745185039616,0.11944791,84980.0,84973.0,0.09872]
[1745185039801,0.00294224,84979.0,84973.0,0.09872]
[1745185040105,0.11944791,84978.0,84973.0,0.09872]
[1745185040512,0.12339015,84978.0,84973.0,0.09872]
[1745185040708,0.12044791,84978.0,84973.0,0.09872]
[1745185041411,0.12044791,84978.0,84972.0,1.00732]
[1745185041613,0.12044791,84978.0,84973.0,0.09872]
[1745185043226,0.05094217,84977.0,84972.0,1.00732]
[1745185043440,0.11944791,84976.0,84973.0,0.09872]
[1745185043643,0.11944791,84976.0,84974.0,0.09872]
[1745185043864,0.12044791,84976.0,84974.0,0.09872]
[1745185044139,0.12044791,84976.0,84975.0,0.00609378]
[1745185052233,0.12044791,84976.0,84975.0,0.10481378]
[1745185052428,0.12044791,84976.0,84975.0,0.09872]
[1745185052662,0.12044791,84976.0,84975.0,0.10508115]
[1745185056728,0.13498876,84976.0,84975.0,0.10508115]
[1745185056959,0.59678876,84976.0,84975.0,0.00636115]
[1745185057132,0.59678876,84976.0,84975.0,0.10508115]
[1745185057360,0.59678876,84976.0,84975.0,0.09872]
[1745185057576,0.59678876,84976.0,84975.0,0.10514234]
[1745185060105,0.59578876,84976.0,84975.0,0.10514234]
[1745185062969,0.59678876,84976.0,84975.0,0.10514234]
[1745185063273,0.64568876,84976.0,84975.0,0.10514234]
[1745185063478,0.64568876,84976.0,84975.0,0.00642234]
[1745185063688,0.64568876,84976.0,84975.0,0.10514234]
[1745185063884,0.64568876,84976.0,84975.0,0.09872]
[1745185064092,0.64568876,84976.0,84975.0,0.10520308]
[1745185064474,0.64568876,84976.0,84975.0,0.00648308]
[1745185064632,0.64668876,84976.0,84975.0,0.09872]
[1745185065155,0.01176955,84965.0,84957.0,1.00772]
[1745185065367,0.01454085,84961.0,84958.0,0.09876]
[1745185065575,0.13398876,84959.0,84958.0,0.10526922]
[1745185065997,0.13498876,84959.0,84958.0,0.10526922]
[1745185067057,0.13498876,84959.0,84958.0,0.00650922]
[1745185067260,0.18328876,84959.0,84958.0,0.09876]
[1745185067460,0.23208876,84959.0,84958.0,0.10542006]
[1745185067724,0.23208876,84959.0,84958.0,0.09876]
[1745185067859,0.23503194,84959.0,84958.0,0.09876]
[1745185068058,0.23503194,84959.0,84958.0,0.1054637]
[1745185068927,0.65123194,84959.0,84958.0,0.1054637]
[1745185069130,0.64828876,84959.0,84958.0,0.1054637]
[1745185069347,0.64828876,84959.0,84958.0,0.0067037]
[1745185069543,0.64928876,84959.0,84958.0,0.1054637]
[1745185069742,0.64928876,84959.0,84958.0,0.09876]
[1745185069913,0.64928876,84959.0,84958.0,0.10550372]
[1745185070175,0.64928876,84959.0,84958.0,0.09876]
[1745185070735,0.01454085,84946.0,84935.0,1.00784]
[1745185070934,0.5991326,84945.0,84935.0,1.00784]
[1745185071257,0.59618876,84945.0,84944.0,0.0996016]
[1745185071454,0.59618876,84945.0,84935.0,1.00784]
[1745185071455,0.01454085,84942.0,84935.0,1.00784]
[1745185071658,0.22913272,84942.0,84941.0,0.10635548]
[1745185071998,0.23013272,84942.0,84941.0,0.10680564]
[1745185072135,0.10824085,84940.0,84935.0,1.00784]
[1745185072509,0.22963276,84940.0,84939.0,0.09973648]
[1745185072681,0.44824085,84936.0,84935.0,1.00784]
[1745185072890,0.56768876,84936.0,84935.0,1.00784]
[1745185073084,0.56868876,84936.0,84935.0,1.00784]
[1745185073284,0.57764558,84936.0,84935.0,1.00784]
[1745185075353,0.56768876,84936.0,84935.0,1.00784]
[1745185075525,0.16764791,84936.0,84935.0,1.1066]
[1745185075732,0.11944791,84936.0,84935.0,1.1066]
[1745185076050,0.13398876,84936.0,84935.0,1.1066]
[1745185076452,0.54934716,84936.0,84935.0,1.1066]
[1745185080015,0.54934716,84936.0,84935.0,1.11288872]
[1745185091905,0.13398876,84936.0,84935.0,1.11288872]
[1745185094423,0.13398876,84936.0,84935.0,0.10504872]
[1745185142778,0.13398876,84936.0,84935.0,0.20434872]
[1745185142779,0.11944791,84936.0,84935.0,0.20434872]
[1745185142996,0.11944791,84936.0,84935.0,0.21614903]
[1745185143636,0.11944791,84936.0,84935.0,0.55614903]
[1745185144052,0.11944791,84936.0,84935.0,0.55714903]
[1745185150943,0.32944791,84936.0,84935.0,0.55714903]
[1745185163433,0.32944791,84936.0,84935.0,1.56514903]
[1745185163931,0.32944791,84936.0,84935.0,1.46638903]
[1745185164227,0.32944791,84936.0,84935.0,1.56510903]
[1745185166126,0.32944791,84936.0,84935.0,1.56410903]
[1745185166337,0.32944791,84936.0,84935.0,1.56510903]
[1745185168138,0.32944791,84936.0,84935.0,1.56410903]
[1745185168367,0.32944791,84936.0,84935.0,1.56510903]
[1745185170894,0.32944791,84936.0,84935.0,1.51530903]
[1745185171056,0.32944791,84936.0,84935.0,1.51430903]
[1745185171256,0.32944791,84936.0,84935.0,1.51530903]
[1745185179985,0.32944791,84936.0,84935.0,1.51430903]
[1745185181613,0.32944791,84936.0,84935.0,1.51530903]
[1745185185962,0.32144791,84936.0,84935.0,1.51530903]
[1745185188447,0.32149287,84936.0,84935.0,1.51530903]
[1745185192955,0.32149287,84936.0,84935.0,1.51430903]
[1745185193633,0.31349287,84936.0,84935.0,1.51430903]
[1745185199561,0.31349287,84936.0,84935.0,1.46480903]
[1745185200677,0.21004496,84936.0,84935.0,1.51490903]
[1745185200882,0.18718011,84936.0,84935.0,1.56330903]
[1745185201128,0.15909498,84936.0,84935.0,1.56330903]
[1745185201348,0.15016681,84936.0,84935.0,1.56330903]
[1745185201569,0.14216681,84936.0,84935.0,1.56326903]
[1745185201775,0.13311681,84936.0,84935.0,1.56326903]
[1745185201987,0.10571681,84936.0,84935.0,1.56326903]
[1745185209084,0.09771681,84936.0,84935.0,1.56326903]
[1745185211500,0.09771681,84936.0,84935.0,1.56166459]
[1745185215500,0.09771681,84936.0,84935.0,1.51326459]
[1745185215832,0.21816472,84936.0,84935.0,1.12316459]
[1745185216067,0.68146472,84936.0,84935.0,1.11848031]
[1745185216291,0.68146472,84936.0,84935.0,1.10668]
[1745185216966,0.68146472,84936.0,84935.0,1.008]
[1745185216967,0.69600557,84936.0,84935.0,1.008]
[1745185217188,0.74140557,84936.0,84935.0,1.10668]